bitfinex/quotes_ETHUSD_20260314
["timestamp","ask_amount","ask_price","bid_price","bid_amount"]
[1773507060138,1.20502412,2078.1,2077.7,0.62880638]
[1773507060638,1.20502412,2078.1,2077.8,0.62880638]
[1773507061425,0.002,2078.1,2077.8,0.62880638]
[1773507061921,0.45033451,2078.0,2077.8,0.62880638]
[1773507062126,0.002,2078.1,2077.8,0.62880638]
[1773507062427,0.4502883,2078.0,2077.8,0.62880638]
[1773507062631,0.002,2078.1,2077.8,0.62880638]
[1773507062926,0.45029315,2078.0,2077.8,0.62880638]
[1773507063143,0.002,2078.3,2078.0,0.62880638]
[1773507063304,1.20483495,2078.5,2078.1,0.62880638]
[1773507063507,1.83819768,2078.5,2078.1,0.62880638]
[1773507064019,0.63336273,2078.4,2078.1,0.62880638]
[1773507064214,0.63336273,2078.4,2077.8,0.62880638]
[1773507064614,0.63336273,2078.2,2077.7,1.611]
[1773507066720,0.63336273,2078.0,2077.7,1.612]
[1773507066917,0.63536273,2078.0,2077.7,1.612]
[1773507068322,0.63536273,2078.0,2077.7,0.001]
[1773507068752,0.63336273,2077.8,2077.6,0.001]
[1773507068937,0.63336273,2077.8,2077.5,0.001]
[1773507070730,0.63336273,2077.7,2077.5,0.001]
[1773507074059,1.83664371,2077.7,2077.5,0.001]
[1773507080947,0.63336273,2077.6,2077.5,0.001]
[1773507082041,1.83667424,2077.6,2077.5,0.001]
[1773507082761,0.53567492,2077.5,2077.2,0.001]
[1773507083351,0.53567492,2077.5,2077.2,0.52590899]
[1773507083557,1.20331151,2077.6,2077.2,0.52590899]
[1773507083754,0.53567492,2077.5,2077.2,0.52590899]
[1773507083958,0.53567492,2077.5,2077.2,0.001]
[1773507084154,1.73906969,2077.5,2077.2,0.001]
[1773507085765,0.53567492,2077.4,2077.2,0.001]
[1773507087846,1.73912688,2077.4,2077.2,0.001]
[1773507090168,0.53567492,2077.4,2077.2,0.001]
[1773507090340,4.81326732,2077.6,2077.2,0.52590899]
[1773507090341,1.73903262,2077.6,2077.2,0.52590899]
[1773507090541,1.73895745,2077.7,2077.2,0.52590899]
[1773507091673,1.73892864,2077.7,2077.2,0.52590899]
[1773507092648,1.73892864,2077.7,2077.4,0.001]
[1773507093140,0.002,2077.5,2077.4,0.001]
[1773507093974,0.53767492,2077.7,2077.4,0.52590899]
[1773507094366,1.74094231,2077.7,2077.4,0.52590899]
[1773507095378,0.53567492,2077.6,2077.4,0.001]
[1773507097571,1.73900266,2077.6,2077.4,0.001]
[1773507105078,1.20529972,2077.7,2077.4,0.52590899]
[1773507105277,1.20529972,2077.7,2077.6,0.001]
[1773507105482,0.002,2077.5,2077.4,0.52590899]
[1773507121564,0.002,2077.9,2077.5,0.4587327]
[1773507121791,0.002,2077.9,2077.6,0.4587327]
[1773507126500,1.69961625,2078.0,2077.6,0.4587327]
[1773507126707,0.49450632,2077.9,2077.5,1.612]
[1773507127205,0.49450632,2077.9,2077.4,1.613]
[1773507130182,0.49450632,2077.7,2077.6,0.001]
[1773507130383,1.697702,2077.8,2077.6,0.001]
[1773507130603,0.002,2077.7,2077.6,0.001]
[1773507131405,0.49650632,2077.7,2077.6,0.001]
[1773507132807,1.69975991,2077.7,2077.6,0.001]
[1773507134389,0.002,2077.7,2077.6,0.001]
[1773507136025,0.49650632,2077.7,2077.6,0.001]
[1773507141024,0.002,2077.7,2077.6,0.001]
[1773507141318,0.49450632,2077.8,2077.6,0.001]
[1773507142493,0.49450632,2077.8,2077.7,0.001]
[1773507143596,1.697702,2077.8,2077.7,0.001]
[1773507152226,0.46299532,2077.7,2077.5,0.001]
[1773507152525,0.46299532,2077.7,2077.2,0.001]
[1773507152526,0.46299532,2077.7,2077.1,0.001]
[1773507152729,0.46299532,2077.4,2076.8,0.001]
[1773507152930,0.46299532,2077.2,2076.8,0.001]
[1773507153332,9.15123652,2077.8,2076.8,0.001]
[1773507153333,0.46299532,2077.0,2076.8,0.001]
[1773507153538,0.91283133,2077.0,2076.8,0.001]
[1773507153828,1.65349513,2077.0,2076.8,0.001]
[1773507154022,0.46299532,2076.9,2076.8,0.001]
[1773507154331,1.20364446,2077.1,2076.8,0.001]
[1773507154738,1.66663978,2077.1,2076.8,0.001]
[1773507158940,0.46299532,2077.0,2076.8,0.001]
[1773507164642,1.66666061,2077.0,2076.8,0.001]
[1773507164820,0.46299532,2076.9,2076.8,0.001]
[1773507166620,0.46299532,2077.0,2076.8,0.001]
[1773507169515,0.001,2076.9,2076.8,0.001]
[1773507170542,0.46299532,2077.0,2076.8,0.001]
[1773507170742,1.69547236,2077.1,2076.8,0.001]
[1773507170959,1.69547236,2077.1,2076.8,0.48628182]
[1773507174848,0.49182532,2077.1,2076.8,0.48628182]
[1773507175051,1.67483655,2077.3,2076.9,0.45360969]
[1773507175347,0.44852047,2077.2,2076.9,0.45360969]
[1773507175648,1.67483655,2077.3,2076.9,0.45360969]
[1773507176346,0.002,2077.6,2077.1,0.45360969]
[1773507176347,0.47330586,2077.6,2077.1,0.45360969]
[1773507176648,0.44864746,2077.5,2077.1,0.45360969]
[1773507176952,0.44864746,2077.4,2077.1,0.45360969]
[1773507177132,0.47330586,2077.6,2077.1,0.45360969]
[1773507177332,0.44879471,2077.5,2077.1,0.45360969]
[1773507177535,0.44879471,2077.4,2077.1,0.45360969]
[1773507177737,0.47330586,2077.6,2077.1,0.45360969]
[1773507177939,0.44879471,2077.5,2077.1,0.45360969]
[1773507178137,0.44879471,2077.4,2077.1,0.45360969]
[1773507178341,0.47330586,2077.6,2077.1,0.45360969]
[1773507178558,1.65233987,2077.5,2077.1,0.45360969]
[1773507178855,0.44896176,2077.4,2077.1,0.45360969]
[1773507179056,1.20337811,2077.5,2077.1,0.45360969]
[1773507179256,0.4491554,2077.4,2077.1,0.45360969]
[1773507179457,1.20337811,2077.5,2077.1,0.45360969]
[1773507179659,0.4491554,2077.4,2077.1,0.45360969]
[1773507179850,1.20337811,2077.5,2077.1,0.45360969]
[1773507180050,0.4491554,2077.4,2077.1,0.45360969]
[1773507180245,0.4491554,2077.3,2077.1,0.45360969]
[1773507180450,1.20337811,2077.5,2077.1,0.45360969]
[1773507180672,0.44937605,2077.4,2077.1,0.45360969]
[1773507180851,0.44937605,2077.3,2077.1,0.45360969]
[1773507181053,1.20337811,2077.5,2077.1,0.45360969]
[1773507181255,0.001,2077.3,2077.1,0.45360969]
[1773507182163,0.45019123,2077.2,2077.1,0.45360969]
[1773507182350,0.45019123,2077.2,2077.1,0.00393213]
[1773507182539,0.001,2077.3,2077.1,0.00393213]
[1773507191836,0.47330586,2077.6,2077.1,0.42451528]
[1773507192041,0.002,2077.6,2077.2,0.42451528]
[1773507192653,0.47330586,2077.6,2077.2,1.62805569]
[1773507192872,1.67661997,2077.6,2077.3,0.42561528]
[1773507198360,0.47330586,2077.6,2077.3,0.42561528]
[1773507201074,0.002,2077.6,2077.3,0.42561528]
[1773507204053,0.002,2077.6,2077.4,0.42451528]
[1773507204978,0.002,2077.6,2077.5,0.0011]
[1773507208080,0.47130586,2077.7,2077.5,0.0011]
[1773507212072,1.65629363,2077.8,2077.5,0.0011]
[1773507213682,0.4510977,2077.7,2077.5,0.0011]
[1773507218363,0.4530977,2077.7,2077.5,0.0011]
[1773507236267,0.44763071,2077.6,2077.5,0.0011]
[1773507237166,0.4530977,2077.7,2077.5,0.0011]
[1773507237367,0.44763071,2077.6,2077.5,0.0011]
[1773507238699,0.4530977,2077.7,2077.5,0.0011]
[1773507244298,0.45126738,2077.6,2077.5,0.0011]
[1773507247576,0.45126738,2077.6,2077.3,0.48419161]
[1773507247899,0.45126738,2077.6,2077.3,0.48339161]
[1773507253705,0.002,2077.7,2077.3,0.48339161]
[1773507253904,0.002,2077.7,2077.4,0.48309161]
[1773507254078,0.002,2077.8,2077.5,0.76013609]
[1773507254284,0.45326738,2078.0,2077.6,0.48309161]
[1773507255383,0.002,2077.9,2077.6,0.48309161]
[1773507259379,0.002,2077.9,2077.6,1.68638695]
[1773507259583,0.002,2077.9,2077.6,0.48309161]
[1773507260304,0.002,2077.9,2077.6,1.68638487]
[1773507260507,0.002,2077.9,2077.6,0.48309161]
[1773507261811,0.002,2077.9,2077.6,1.68640249]
[1773507267212,0.002,2077.9,2077.8,0.001]
[1773507267591,0.49089777,2077.9,2077.8,0.001]
[1773507273922,0.002,2077.9,2077.8,0.001]
[1773507274092,0.48889777,2078.9,2077.9,0.49799645]
[1773507274293,0.49289777,2078.8,2078.1,0.49799645]
[1773507276721,0.48889777,2078.7,2078.2,0.49799645]
[1773507277225,0.48889777,2078.7,2078.1,0.49799645]
[1773507277529,0.48889777,2078.5,2078.1,0.49799645]
[1773507278808,1.54293312,2079.0,2078.2,0.49799645]
[1773507279130,0.49289777,2078.9,2078.2,0.49799645]
[1773507279425,0.48889777,2078.5,2078.3,0.001]
[1773507279803,0.49289777,2078.4,2078.3,0.001]
[1773507280106,0.48889777,2078.4,2078.3,0.001]
[1773507281332,0.004,2078.4,2078.3,0.001]
[1773507285611,0.002,2078.6,2078.3,0.49899645]
[1773507285812,0.004,2078.5,2078.3,0.49899645]
[1773507287036,0.004,2078.5,2078.3,0.001]
[1773507287432,0.49289777,2078.5,2078.3,0.001]
[1773507290434,0.004,2078.4,2078.3,0.001]
[1773507290634,0.4935754,2078.4,2078.3,0.001]
[1773507292118,0.4895754,2078.4,2078.3,0.001]
[1773507293542,0.48209009,2078.5,2078.3,0.001]
[1773507293725,0.48609009,2078.5,2078.3,0.001]
[1773507297823,0.48609009,2078.4,2078.3,0.001]
[1773507298027,0.48609009,2078.4,2078.0,0.001]
[1773507298331,0.48609009,2078.3,2078.0,0.001]
[1773507298548,0.48209009,2078.3,2078.0,0.001]
[1773507299724,0.48209009,2078.3,2078.0,0.49048977]
[1773507301024,0.48609009,2078.2,2078.0,0.001]
[1773507301246,0.48509009,2078.2,2077.5,1.2043231]
[1773507301450,0.48209009,2078.2,2077.5,1.2043231]
[1773507301826,0.48209009,2078.2,2077.5,0.49048977]
[1773507302946,1.68505574,2078.2,2077.5,0.49048977]
[1773507303151,0.48209009,2078.1,2078.0,0.001]
[1773507303347,0.48209009,2078.1,2077.6,0.48948977]
[1773507303729,0.48209009,2078.1,2077.8,0.001]
[1773507306552,0.002,2078.3,2077.9,0.48948977]
[1773507307738,0.002,2078.3,2078.0,1.20307988]
[1773507308053,0.002,2078.3,2078.1,0.48948977]
[1773507319958,0.002,2078.3,2078.2,0.48948977]
[1773507321439,0.002,2078.5,2078.2,0.49264999]
[1773507321941,0.48575464,2078.5,2078.0,1.69669556]
[1773507324140,0.48375464,2078.4,2078.0,0.49364999]
[1773507324340,0.48375464,2078.4,2078.0,0.001]
[1773507326179,0.48375464,2078.3,2078.0,0.001]
[1773507328052,0.48375464,2078.3,2078.2,0.001]
[1773507328250,0.48375464,2078.2,2078.0,0.001]
[1773507330273,0.48375464,2078.2,2077.8,0.001]
[1773507336870,1.20299098,2078.2,2077.8,0.001]
[1773507337078,0.48375464,2078.1,2077.8,0.001]
[1773507340054,0.48375464,2078.1,2078.0,0.001]
[1773507340253,0.002,2078.0,2077.8,0.001]
[1773507341259,0.002,2078.0,2077.8,0.49364999]
[1773507347666,0.002,2078.0,2077.8,1.69683566]
[1773507348983,0.002,2078.0,2077.9,0.49264999]
[1773507352972,0.002,2078.0,2077.9,0.49364999]
[1773507355469,0.54270419,2078.0,2077.9,0.001]
[1773507355662,0.54270419,2078.0,2077.7,0.51383077]
[1773507359601,0.54270419,2078.0,2077.8,0.51283077]
[1773507359602,0.002,2078.0,2077.8,0.51283077]
[1773507361179,0.002,2078.0,2077.7,0.51383077]
[1773507363565,0.002,2078.0,2077.6,0.001]
[1773507363566,0.54270419,2078.0,2077.6,0.001]
[1773507365595,1.74578407,2078.0,2077.9,0.001]
[1773507365893,0.002,2077.8,2077.6,0.001]
[1773507367470,0.54070419,2077.9,2077.6,0.001]
[1773507370308,0.54070419,2077.9,2077.6,0.51383077]
[1773507370688,0.002,2078.0,2077.6,0.51383077]
[1773507372278,0.54270419,2078.0,2077.6,1.71713155]
[1773507376236,0.54270419,2078.0,2077.7,0.51283077]
[1773507377488,0.54270419,2078.0,2077.8,0.001]
[1773507378109,1.74579004,2078.0,2077.8,0.001]
[1773507379684,0.54270419,2078.0,2077.8,0.001]
[1773507386716,0.51772864,2077.9,2077.8,0.001]
[1773507386899,0.51772864,2077.9,2077.6,0.001]
[1773507387413,0.51772864,2077.9,2077.6,0.54094904]
[1773507389311,0.51772864,2077.9,2077.6,1.74425819]
[1773507389699,0.51772864,2077.9,2077.8,0.001]
[1773507389899,0.002,2077.8,2077.6,1.74425819]
[1773507392520,0.51972864,2077.8,2077.6,0.001]
[1773507402729,1.72292434,2077.8,2077.6,0.001]
[1773507402913,0.51972864,2077.8,2077.6,0.001]
[1773507423137,0.002,2077.8,2077.6,0.50951372]
[1773507454883,0.002,2077.8,2077.6,0.001]
[1773507456776,0.002,2077.8,2077.6,0.55593076]
[1773507486502,0.002,2077.8,2077.7,0.68093088]
[1773507501412,0.002,2078.0,2077.7,0.67993088]
[1773507503705,0.002,2078.1,2077.6,1.20428688]
[1773507503906,1.20497658,2078.2,2077.9,0.67993088]
[1773507507015,0.002,2078.2,2077.9,0.67993088]
[1773507509618,0.002,2078.2,2077.9,0.68093088]
[1773507509804,0.002,2078.0,2077.9,0.68093088]
[1773507510819,0.002,2078.2,2078.0,0.67993088]
[1773507517321,0.002,2078.2,2077.9,0.52220493]
[1773507521520,0.002,2078.2,2078.1,0.001]
[1773507521722,0.002,2078.2,2078.1,3.131e-05]
[1773507528105,0.002,2078.2,2077.9,0.52220493]
[1773507532133,0.5303711,2078.2,2077.9,0.52220493]
[1773507532946,1.73339193,2078.2,2077.9,0.52220493]
[1773507533866,1.73339193,2078.2,2078.1,0.001]
[1773507534137,0.002,2078.0,2077.9,0.52220493]
[1773507534944,1.73150888,2077.9,2077.6,0.001]
[1773507535148,0.5283711,2077.8,2077.6,0.001]
[1773507537021,1.20325359,2077.7,2077.6,0.001]
[1773507540046,0.5283711,2077.8,2077.6,0.001]
[1773507540047,1.73160634,2077.8,2077.6,0.001]
[1773507540544,1.2050939,2078.0,2077.6,0.49320667]
[1773507540746,1.20508774,2078.0,2077.6,0.49320667]
[1773507543246,1.73345884,2078.0,2077.6,0.49320667]
[1773507543623,1.20508774,2078.0,2077.6,0.49320667]
[1773507543828,0.5283711,2077.9,2077.6,0.001]
[1773507544631,1.731554,2077.9,2077.6,0.001]
[1773507544833,0.5283711,2077.8,2077.6,0.001]
[1773507547326,1.73160851,2077.8,2077.6,0.001]
[1773507547543,1.20318406,2077.9,2077.6,0.001]
[1773507547848,1.20318406,2077.9,2077.6,0.49320667]
[1773507557270,1.20318406,2077.9,2077.8,0.0011]
[1773507558459,0.5283711,2077.9,2077.8,0.0011]
[1773507559254,0.5283711,2077.9,2077.4,0.2386081]
[1773507561366,0.5283711,2077.9,2077.5,0.23947256]
[1773507561367,1.73151979,2077.9,2077.5,0.23947256]
[1773507561533,0.52168558,2077.8,2077.5,0.23947256]
[1773507563656,1.7249223,2077.8,2077.5,0.23947256]
[1773507563831,1.7249223,2077.8,2077.4,0.001]
[1773507564033,1.7249223,2077.8,2077.4,0.24226909]
[1773507564255,0.52168558,2077.7,2077.4,0.24226909]
[1773507566051,1.7249223,2077.8,2077.4,0.24226909]
[1773507569262,1.7249223,2077.8,2077.6,0.001]
[1773507569564,0.002,2077.7,2077.6,0.001]
[1773507586673,1.72488259,2077.8,2077.6,0.001]
[1773507594876,1.72688259,2077.8,2077.6,0.001]
[1773507599984,0.51176808,2077.7,2077.6,0.001]
[1773507600361,0.51176808,2077.5,2077.3,0.0003]
[1773507601283,0.51176808,2077.7,2077.3,0.34956115]
[1773507601678,0.51176808,2077.7,2077.2,0.001]
[1773507601985,0.51176808,2077.7,2077.2,0.3509356]
[1773507603891,1.71507959,2077.6,2077.2,0.3509356]
[1773507606395,0.54291862,2077.5,2077.0,0.0011]
[1773507606557,1.20331151,2077.6,2077.1,0.00206381]
[1773507606765,1.20330569,2077.7,2077.3,0.00206381]
[1773507607083,1.74622431,2077.7,2077.3,0.00206381]
[1773507611371,0.54291862,2077.7,2077.3,0.00206381]
[1773507612201,1.7461762,2077.7,2077.3,0.00206381]
[1773507614407,0.54291862,2077.7,2077.3,0.00206381]
[1773507614567,0.002,2077.8,2077.3,0.00206381]
[1773507614768,0.54491862,2077.8,2077.3,0.00206381]
[1773507615083,1.74812547,2077.8,2077.3,0.00206381]
[1773507615605,1.74812547,2077.8,2077.3,1.2055491]
[1773507615900,1.74812547,2077.8,2077.4,0.00731241]
[1773507616802,0.002,2077.9,2077.4,0.00731241]
[1773507617103,1.71497493,2077.8,2077.4,0.00731241]
[1773507618494,1.71497493,2077.8,2077.5,0.0011]
[1773507618690,0.001,2077.6,2077.5,0.0011]
[1773507619195,1.71497493,2077.8,2077.5,0.0011]
[1773507619896,0.51176808,2077.7,2077.5,0.0011]
[1773507622174,0.54014073,2077.6,2077.5,0.0011]
[1773507623897,0.54014073,2077.6,2077.3,0.0011]
[1773507625204,0.54014073,2077.4,2077.3,0.0011]
[1773507626102,1.20336943,2077.5,2077.3,0.0011]
[1773507626704,1.74351016,2077.5,2077.3,0.0011]
[1773507629394,0.54014073,2077.5,2077.3,0.0011]
[1773507629594,1.20335245,2077.6,2077.3,0.54326336]
[1773507630613,1.20335245,2077.6,2077.5,0.0011]
[1773507630986,1.20435245,2077.6,2077.5,0.0011]
[1773507634306,0.001,2077.6,2077.5,0.0011]
[1773507634507,0.54114073,2077.6,2077.5,0.0011]
[1773507639821,1.74445224,2077.6,2077.5,0.0011]
[1773507642525,0.001,2077.6,2077.5,0.0011]
[1773507643398,1.20319568,2077.8,2077.5,0.54326336]
[1773507654732,1.20319568,2077.8,2077.7,0.0011]
[1773507659321,1.71974819,2077.8,2077.7,0.0011]
[1773507667872,1.72174819,2077.8,2077.7,0.0011]
[1773507676230,0.002,2077.8,2077.7,0.0011]
[1773507676433,1.20519568,2077.8,2077.7,0.0011]
[1773507678749,1.72174819,2077.8,2077.4,0.04241217]
[1773507678939,1.72174819,2077.8,2077.3,0.0011]
[1773507678940,0.56319708,2077.7,2077.3,0.0011]
[1773507679828,0.002,2077.6,2077.3,0.0011]
[1773507680030,0.002,2077.6,2077.5,0.001]
[1773507681350,1.20531151,2077.6,2077.5,0.001]
[1773507691850,1.76850859,2077.6,2077.3,0.0011]
[1773507692034,1.76850859,2077.6,2077.4,0.001]
[1773507694972,1.20531151,2077.6,2077.4,0.001]
[1773507715861,0.56519708,2077.6,2077.4,0.001]
[1773507719682,1.20336943,2077.5,2077.4,0.001]
[1773507719867,1.76656651,2077.5,2077.4,0.001]
[1773507720587,0.56269708,2077.4,2077.1,0.001]
[1773507720789,0.56269708,2077.4,2076.6,0.001]
[1773507724687,0.5567447,2077.2,2076.6,0.001]
[1773507726790,0.5567447,2077.0,2076.6,0.001]
[1773507729600,1.76040382,2077.0,2076.6,0.001]
[1773507731205,0.5567447,2077.0,2076.6,0.001]
[1773507735320,0.001,2077.2,2076.6,0.001]
[1773507737204,0.5577447,2077.2,2076.6,0.001]
[1773507739411,1.76034587,2077.1,2076.6,0.001]
[1773507751726,0.001,2077.2,2076.6,0.001]
[1773507752225,0.5577447,2077.2,2076.6,0.001]
[1773507752629,0.5577447,2077.2,2077.1,0.0011]
[1773507754218,1.76128793,2077.2,2077.1,0.0011]
[1773507767431,4.81408033,2077.3,2077.1,0.0011]
[1773507767603,2.02358225,2077.2,2077.1,0.0011]
[1773507770607,0.82003902,2077.7,2077.1,0.0011]
[1773507770806,2.02535705,2077.6,2077.1,0.0011]
[1773507771013,0.82003902,2077.5,2077.1,0.0011]
[1773507773340,0.82003902,2077.3,2077.1,0.0011]
[1773507776321,2.02358225,2077.2,2077.1,0.0011]
[1773507789253,4.81400423,2077.3,2077.1,0.0011]
[1773507789460,0.82003902,2077.2,2077.1,0.0011]
[1773507793262,2.02358225,2077.2,2077.1,0.0011]
[1773507797970,0.82003902,2077.2,2077.1,0.0011]
[1773507798870,2.02358225,2077.2,2077.1,0.0011]
[1773507806364,0.82003902,2077.2,2077.1,0.0011]
[1773507806566,0.82003902,2077.4,2077.1,0.0011]
[1773507806766,1.20336943,2077.5,2077.1,0.0011]
[1773507806981,2.02340845,2077.5,2077.1,0.0011]
[1773507812002,0.82003902,2077.5,2077.1,0.0011]
[1773507812175,2.02343509,2077.5,2077.1,0.0011]
[1773507812370,2.02341254,2077.5,2077.1,0.0011]
[1773507813970,2.02341254,2077.5,2077.3,0.0011]
[1773507821209,0.002,2077.6,2077.3,0.0011]
[1773507821409,1.70104616,2077.8,2077.5,0.22556304]
[1773507821609,1.70104616,2077.8,2077.4,0.22503926]
[1773507821811,0.49661961,2077.7,2077.4,0.22503926]
[1773507823117,1.69990497,2077.7,2077.4,0.22503926]
[1773507823411,1.69990497,2077.7,2077.3,0.22562149]
[1773507824620,0.49661961,2077.6,2077.3,0.22562149]
[1773507825920,0.001,2077.5,2077.3,0.22562149]
[1773507834927,1.20328536,2077.7,2077.4,0.21786714]
[1773507837230,1.68289212,2077.7,2077.4,0.21786714]
[1773507837407,1.68289212,2077.7,2077.5,0.0011]
[1773507837606,0.001,2077.6,2077.5,0.0011]
[1773507839133,0.001,2077.6,2077.3,0.0011]
[1773507842809,0.51909719,2077.6,2077.3,0.0011]
[1773507843015,0.51909719,2077.6,2077.0,3.8711]
[1773507843211,0.51909719,2077.6,2076.8,0.001]
[1773507843630,0.51809719,2077.4,2076.8,0.001]
[1773507846937,0.51809719,2077.2,2076.8,0.001]
[1773507849318,1.72168806,2077.2,2077.0,0.001]
[1773507852814,0.51809719,2077.1,2077.0,0.001]
[1773507861357,1.72169836,2077.1,2077.0,0.001]
[1773507861951,0.51809719,2077.1,2077.0,0.001]
[1773507862148,0.51809719,2077.1,2076.8,0.001]
[1773507862149,0.51809719,2077.0,2076.8,0.001]
[1773507862454,0.51809719,2077.0,2076.9,0.0011]
[1773507864241,1.72175631,2077.0,2076.9,0.0011]
[1773507865630,0.51809719,2077.0,2076.9,0.0011]
[1773507865846,1.72172154,2077.1,2076.9,0.0011]
[1773507869437,4.8142984,2077.2,2076.9,0.0011]
[1773507869438,0.51809719,2077.0,2076.9,0.0011]
[1773507871540,1.72175631,2077.0,2076.9,0.0011]
[1773507872902,0.51754719,2076.9,2076.6,0.001]
[1773507873177,0.51754719,2076.9,2076.5,0.001]
[1773507874199,0.51754719,2076.7,2076.5,0.001]
[1773507874955,0.51754719,2076.7,2076.6,0.001]
[1773507876793,1.72138019,2076.7,2076.6,0.001]
[1773507886202,1.72326723,2076.9,2076.6,0.001]
[1773507886678,1.72326723,2076.9,2076.8,0.0011]
[1773507896729,1.20572004,2076.9,2076.8,0.0011]
[1773507897703,1.72326723,2076.9,2076.8,0.0011]
[1773507902520,1.72326723,2076.9,2076.8,4.436e-05]
[1773507912424,0.51954719,2076.9,2076.8,4.436e-05]
[1773507912795,0.002,2076.9,2076.8,4.436e-05]
[1773507912996,1.20571707,2076.9,2076.8,4.436e-05]
[1773507913493,1.72326426,2076.9,2076.8,4.436e-05]
[1773507915124,5.06183062,2077.1,2076.8,4.436e-05]
[1773507915125,0.002,2077.1,2076.8,4.436e-05]
[1773507920738,1.20354199,2077.3,2076.8,4.436e-05]
[1773507920917,1.72108918,2077.3,2076.8,4.436e-05]
[1773507922138,1.72108918,2077.3,2077.0,0.0011]
[1773507922311,0.51754719,2077.3,2077.0,0.0011]
[1773507922626,0.51754719,2077.2,2077.0,0.0011]
[1773507925244,1.20360117,2077.1,2077.0,0.0011]
[1773507926038,1.72114836,2077.1,2077.0,0.0011]
[1773507948964,1.20543897,2077.4,2077.0,0.0011]
[1773507949129,0.002,2077.4,2077.0,0.0011]
[1773507955239,0.002,2077.4,2077.0,0.04924636]
[1773507956255,0.002,2077.4,2077.0,1.25288756]
[1773507957647,0.002,2077.4,2077.2,0.0011]
[1773507969486,0.002,2077.4,2077.3,0.001]
[1773507977597,0.001,2077.6,2077.3,0.001]
[1773507980108,0.51954719,2077.7,2077.3,0.001]
[1773507980398,0.0012,2077.8,2077.5,0.48910175]
[1773507981898,0.0012,2077.8,2077.5,0.49010175]
[1773507982199,0.002,2077.6,2077.5,0.49010175]
[1773507982384,0.0012,2077.8,2077.5,0.49010175]
[1773507989018,0.458482,2077.8,2077.5,0.49010175]
[1773507989515,0.458482,2077.8,2077.5,0.001]
[1773507993502,0.001,2077.6,2077.5,0.001]
[1773507994416,0.458482,2077.8,2077.5,0.001]
[1773507995915,0.458482,2077.8,2077.5,0.45809894]
[1773507998018,0.458482,2077.8,2077.5,0.001]
[1773507999522,0.458482,2077.8,2077.5,0.45809894]
[1773507999718,0.0012,2077.8,2077.5,0.45809894]
[1773508002325,0.0012,2077.8,2077.6,0.45709894]
[1773508005202,0.0012,2077.8,2077.7,0.001]
[1773508005928,0.458482,2077.8,2077.7,0.001]
[1773508007132,0.0012,2077.8,2077.7,0.001]
[1773508008828,0.458482,2077.8,2077.7,0.001]
[1773508009032,0.457282,2077.7,2077.3,0.001]
[1773508009411,0.76150204,2077.8,2077.0,0.0011]
[1773508009412,0.457282,2077.4,2077.0,0.0011]
[1773508010032,1.20360117,2077.1,2076.8,4.436e-05]
[1773508010202,0.49358864,2077.0,2076.7,0.0011]
[1773508012333,0.45854842,2076.8,2076.7,0.0011]
[1773508022335,1.66223623,2077.0,2076.7,0.0011]
[1773508022537,1.66219755,2077.1,2076.7,0.48846088]
[1773508022724,0.45854842,2077.5,2077.0,0.28656258]
[1773508022925,0.45854842,2077.5,2076.7,0.76140204]
[1773508022926,0.45854842,2077.5,2076.8,0.28656258]
[1773508024636,0.45854842,2077.3,2076.8,0.28656258]
[1773508024822,0.45854842,2077.3,2076.8,1.49033216]
[1773508025140,0.45854842,2077.3,2076.9,0.28647332]
[1773508029248,1.66207143,2077.3,2076.9,0.28647332]
[1773508029550,1.66207143,2077.3,2076.9,0.28757332]
[1773508029744,1.20352301,2077.3,2076.9,0.28757332]
[1773508030051,0.001,2077.1,2076.9,0.28757332]
[1773508032653,0.002,2077.6,2076.9,0.0011]
[1773508032859,1.66295146,2077.8,2077.3,0.2861362]
[1773508033147,1.66295146,2077.8,2076.9,1.20478919]
[1773508033148,0.45854842,2077.7,2076.9,1.20478919]
[1773508034748,1.20440304,2077.8,2076.9,0.0011]
[1773508034749,1.20331151,2077.6,2076.9,0.0011]
[1773508034953,0.50174084,2077.6,2076.9,0.0011]
[1773508038552,1.70505872,2077.6,2076.9,1.20481707]
[1773508038758,0.50174084,2077.6,2076.9,1.20481707]
[1773508040730,0.50174084,2077.6,2076.9,1.30481707]
[1773508041360,1.70505506,2077.6,2076.9,1.30481707]
[1773508041562,0.50174084,2077.5,2077.1,0.0011]
[1773508041936,0.001,2077.4,2077.1,0.0011]
[1773508043264,0.50274084,2077.4,2077.1,0.0011]
[1773508045474,0.50174084,2077.3,2077.1,0.0011]
[1773508058549,1.70524068,2077.3,2077.1,0.0011]
[1773508058759,0.50174084,2077.3,2077.1,0.0011]
[1773508075688,0.50274084,2077.4,2077.1,0.0011]
[1773508077106,0.50274084,2077.4,2077.3,0.0011]
[1773508077797,1.7061682,2077.4,2077.3,0.0011]
[1773508078179,0.50274084,2077.4,2077.3,0.0011]
[1773508081023,0.50119084,2077.3,2077.0,0.0011]
[1773508085010,0.50119084,2077.2,2077.0,0.0011]
[1773508089498,0.001,2077.1,2077.0,0.0011]
[1773508100416,0.50219084,2077.1,2077.0,0.0011]
[1773508106134,1.70579201,2077.1,2077.0,0.0011]
[1773508107632,0.50219084,2077.1,2077.0,0.0011]
[1773508107930,0.50064084,2077.0,2076.8,0.0011]
[1773508111604,1.70430117,2077.0,2076.8,0.0011]
[1773508114636,0.001,2076.9,2076.8,0.0011]
[1773508116835,0.50164084,2076.9,2076.8,0.0011]
[1773508130051,0.50164084,2076.9,2076.6,0.001]
[1773508130252,0.50009084,2076.8,2076.6,0.001]
[1773508138458,0.001,2076.7,2076.6,0.001]
[1773508141041,0.001,2076.9,2076.6,0.001]
[1773508143163,0.001,2076.9,2076.6,1.20489097]
[1773508146865,0.001,2076.9,2076.5,0.001]
[1773508147375,0.001,2076.9,2076.5,0.04915795]
[1773508149867,0.001,2076.9,2076.8,0.0011]
[1773508153670,0.50109084,2076.9,2076.8,0.0011]
[1773508155170,0.001,2076.9,2076.8,0.0011]
[1773508155377,0.001,2077.1,2076.8,0.0011]